bitfinex-derivatives/quotes_ETHF0:USTF0_20240907
["timestamp","ask_amount","ask_price","bid_price","bid_amount"]
[1725675724441,0.44713,2237.1,2236.7,3.90319]
[1725675724645,0.44714,2237.0,2236.7,3.456]
[1725675724951,0.44715,2236.9,2236.7,3.456]
[1725675725351,0.44715,2237.0,2236.7,3.456]
[1725675725845,0.44715,2236.9,2236.7,3.456]
[1725675726053,0.80935,2236.9,2236.7,3.456]
[1725675726239,3.2078,2237.3,2236.7,3.456]
[1725675726440,0.80927,2237.4,2237.1,3.09]
[1725675726646,0.80927,2237.4,2237.2,0.3674]
[1725675727050,0.44707,2237.3,2237.2,0.3674]
[1725675727754,0.447,2237.7,2237.2,8.49188]
[1725675728054,0.27013852,2237.9,2237.2,8.49188]
[1725675728055,0.44699,2237.8,2237.5,6.2978]
[1725675728354,0.44698,2237.8,2237.5,6.2978]
[1725675728554,0.44696,2237.9,2237.5,6.2978]
[1725675728743,0.02330986,2237.7,2237.3,3.4797]
[1725675728943,0.44707,2237.3,2237.2,0.3674]
[1725675729148,0.47037986,2237.3,2237.2,0.3674]
[1725675729649,5.61062986,2237.3,2236.9,3.09]
[1725675729844,0.44715,2237.0,2236.8,3.2078]
[1725675730057,0.44717,2236.8,2236.7,0.3714]
[1725675730246,0.47047986,2236.8,2236.7,0.3714]
[1725675730445,0.84862247,2236.8,2236.7,0.3714]
[1725675731153,0.44722,2236.6,2236.4,3.2078]
[1725675731354,0.02335247,2236.5,2236.4,3.2078]
[1725675731544,0.44723,2236.5,2236.4,3.2078]
[1725675731745,0.47058247,2236.5,2236.4,3.2078]
[1725675732549,0.02335247,2236.5,2236.4,3.2078]
[1725675732754,0.47058247,2236.5,2236.4,3.2078]
[1725675734253,0.44723,2236.5,2236.4,3.2078]
[1725675734457,0.47059275,2236.5,2236.4,3.2078]
[1725675736557,0.44723,2236.5,2236.4,3.2078]
[1725675737156,0.44725,2236.4,2236.3,0.3845]
[1725675737462,0.84575,2236.4,2236.3,0.3845]
[1725675738161,0.44737,2235.9,2235.2,3.2078]
[1725675738349,0.44737,2235.9,2235.4,0.44744]
[1725675738350,0.3985,2235.8,2235.4,0.44744]
[1725675738858,3.2078,2236.0,2235.5,3.2078]
[1725675739054,0.44734,2236.0,2235.6,0.4474]
[1725675739254,0.44734,2236.0,2235.5,3.2078]
[1725675739255,0.44735,2236.0,2235.5,6.74522]
[1725675739760,0.44735,2236.0,2235.3,1.1298]
[1725675739761,0.7617,2236.1,2235.3,1.57727]
[1725675740065,3.2078,2235.9,2235.3,1.1298]
[1725675740566,0.44742,2235.6,2235.3,1.1298]
[1725675742554,0.44741,2235.7,2235.3,1.1298]
[1725675744265,0.44742,2235.6,2235.3,1.1298]
[1725675746863,0.44744,2235.5,2235.3,1.1298]
[1725675747062,0.44743,2235.6,2235.3,1.1298]
[1725675747862,0.44745,2235.5,2235.3,1.1298]
[1725675749068,0.44745,2235.4,2235.3,0.7578]
[1725675750367,3.2078,2235.6,2235.3,11.2314]
[1725675750561,0.44732,2236.1,2235.7,0.44738]
[1725675750763,0.44731,2236.2,2235.8,1.20287]
[1725675750970,0.84087,2236.4,2236.0,0.44733]
[1725675751663,0.44728,2236.3,2235.9,0.44734]
[1725675751967,0.4473,2236.2,2235.8,4.29286]
[1725675752365,0.4473,2236.2,2235.9,0.44735]
[1725675753068,0.4473,2236.2,2235.8,3.8455]
[1725675753069,0.44734,2236.0,2235.8,3.8455]
[1725675753468,0.44733,2236.1,2235.8,3.8455]
[1725675753664,0.44728,2236.3,2235.9,0.84404]
[1725675753864,0.4473,2236.2,2235.9,0.3967]
[1725675755877,0.44733,2236.0,2235.9,0.3967]
[1725675756166,3.65513,2236.0,2235.9,0.3967]
[1725675759671,4.77347,2236.0,2235.9,0.3967]
[1725675760173,9.24547,2236.0,2235.9,0.3967]
[1725675760575,3.65513,2236.0,2235.9,0.3967]
[1725675761270,0.44733,2236.0,2235.9,0.3967]
[1725675761872,1.49177,2236.2,2235.9,0.3967]
[1725675762073,0.44733,2236.0,2235.9,0.3967]
[1725675763376,0.44732,2236.1,2235.9,0.3967]
[1725675763972,4.32601,2236.3,2235.9,0.3967]
[1725675764275,3.2078,2236.0,2235.9,0.3967]
[1725675764678,3.65513,2236.0,2235.9,0.3967]
[1725675765473,0.44733,2236.0,2235.9,0.3967]
[1725675765773,3.65513,2236.0,2235.9,0.3967]
[1725675769877,0.44733,2236.0,2235.9,0.3967]
[1725675772180,0.44727,2236.3,2235.9,0.84404]
[1725675772382,0.44731,2236.1,2236.0,0.3841]
[1725675772874,0.44731,2236.2,2236.0,0.3841]
[1725675773477,0.44731,2236.1,2236.0,0.3841]
[1725675773877,0.44733,2236.0,2235.9,0.3967]
[1725675774081,0.81263,2236.0,2235.9,0.3967]
[1725675778282,0.44739,2235.7,2235.6,1.54501661]
[1725675778484,1.48364,2236.0,2235.7,0.3845]
[1725675778784,0.44737,2235.8,2235.7,0.3845]
[1725675780687,0.44737,2235.8,2235.7,1.55621661]
[1725675780881,0.44737,2235.8,2235.7,0.3845]
[1725675781280,0.44732,2236.1,2235.8,0.44737]
[1725675781479,0.44731,2236.2,2235.9,0.81155]
[1725675781679,0.44731,2236.1,2236.0,0.4004]
[1725675782288,0.44731,2236.2,2236.0,0.4004]
[1725675782583,0.84028,2236.3,2236.0,0.84773]
[1725675782776,0.84028,2236.3,2236.1,0.3627]
[1725675783689,0.44729,2236.2,2236.1,0.3627]
[1725675786289,0.44735,2235.9,2235.8,1.17171661]
[1725675786478,0.44735,2235.9,2235.8,0.362]
[1725675787386,0.44739,2235.7,2235.6,1.17171661]
[1725675787588,0.44739,2235.7,2235.6,1.53371661]
[1725675787989,0.44739,2235.7,2235.6,4.36501017]
[1725675789282,0.44739,2235.7,2235.6,3.76318506]
[1725675789482,0.44739,2235.7,2235.6,1.52479943]
[1725675789785,0.44739,2235.7,2235.6,0.362]
[1725675793388,0.44745,2235.4,2235.3,1.76464636]
[1725675793587,0.44745,2235.4,2235.3,1.16348678]
[1725675793789,0.44745,2235.4,2235.3,5.63708678]
[1725675794097,0.44745,2235.4,2235.3,4.4736]
[1725675794990,0.44745,2235.5,2235.3,4.4736]
[1725675795191,0.44746,2235.4,2235.2,1.55238678]
[1725675795593,0.44746,2235.4,2235.2,6.02598678]
[1725675796497,0.44744,2235.5,2235.3,1.16348678]
[1725675796693,0.44744,2235.5,2235.4,0.739]
[1725675799794,4.32629,2235.7,2235.2,1.55238678]
[1725675800100,0.44745,2235.5,2235.2,1.1521]
[1725675800599,0.44746,2235.4,2235.2,1.1521]
[1725675800796,0.82076,2235.4,2235.2,1.1521]
[1725675802806,0.44747,2235.3,2235.2,1.1521]
[1725675802993,0.3733,2235.4,2235.2,1.1521]
[1725675803303,0.82077,2235.4,2235.2,1.1521]
[1725675803503,0.44747,2235.3,2235.2,1.1521]
[1725675803899,0.44747,2235.3,2235.2,0.3889]
[1725675804099,0.44755,2234.9,2234.8,1.16348678]
[1725675804298,0.44755,2235.0,2234.8,0.3794]
[1725675804499,0.44755,2234.9,2234.8,0.3794]
[1725675805698,0.83355,2235.0,2234.8,0.3794]
[1725675806004,0.8335,2235.2,2234.9,1.20904]
[1725675806905,0.8335,2235.2,2234.9,0.7615]
[1725675807294,0.386,2235.2,2234.9,1.20905]
[1725675807493,0.8335,2235.2,2234.9,0.7615]
[1725675808015,0.44751,2235.1,2234.9,0.7615]
[1725675808498,0.44751,2235.1,2234.8,0.82696]
[1725675808499,0.44755,2234.9,2234.8,0.3794]
[1725675808705,0.44754,2235.0,2234.8,0.3794]
[1725675809995,0.44755,2234.9,2234.8,0.3794]
[1725675814214,0.82055,2234.9,2234.8,0.3794]
[1725675815606,1.93944,2234.9,2234.8,0.3794]
[1725675816206,0.44762,2234.6,2234.3,3.65547]
[1725675816507,0.44762,2234.6,2234.4,0.378]
[1725675817307,1.48086,2234.8,2234.4,0.378]
[1725675817507,0.44762,2234.6,2234.4,0.378]
[1725675820210,0.44763,2234.5,2234.4,0.378]
[1725675821717,1.95922,2234.5,2234.4,0.378]
[1725675825111,6.2978,2234.6,2234.4,0.378]
[1725675825309,3.5697,2234.8,2234.5,0.3964]
[1725675825610,3.5697,2234.8,2234.5,0.7597]
[1725675825611,0.4476,2234.7,2234.5,0.7597]
[1725675828721,3.5697,2234.8,2234.4,0.378]
[1725675828915,0.83423,2234.6,2234.4,0.378]
[1725675829123,0.44763,2234.5,2234.4,0.378]
[1725675838726,0.44763,2234.6,2234.4,0.378]
[1725675839117,0.44763,2234.6,2234.5,0.3767]
[1725675842625,0.44761,2234.7,2234.5,0.3767]
[1725675843027,0.4476,2234.7,2234.5,0.3767]
[1725675843931,0.44762,2234.6,2234.4,0.378]
[1725675844816,6.34706,2234.8,2234.4,0.378]
[1725675844817,0.44761,2234.7,2234.4,0.378]
[1725675845230,5.22881,2235.1,2234.5,4.4752]
[1725675845231,4.11,2235.1,2234.5,4.4752]
[1725675845431,0.3852,2235.3,2235.0,0.44752]
[1725675845621,0.3852,2235.3,2235.1,1.61791]
[1725675845820,0.22348094,2235.4,2235.1,1.6179]
[1725675846226,1.73744,2235.5,2235.1,1.6179]
[1725675846421,4.11,2235.8,2235.6,0.44739]
[1725675846626,0.22091726,2235.8,2235.7,0.7735]
[1725675846827,0.22091726,2235.8,2235.7,0.3886]
[1725675846828,1.73737,2235.8,2235.7,0.3886]
[1725675847035,6.43102007,2235.8,2235.7,0.3886]
[1725675847425,1.95822007,2235.8,2235.7,0.3886]
[1725675847838,4.69365007,2235.8,2235.7,0.3886]
[1725675848132,4.4728,2235.8,2235.7,0.3886]
[1725675851830,0.22828565,2235.9,2235.7,0.3886]
[1725675852032,4.70108565,2235.9,2235.7,0.3886]
[1725675852439,5.14844565,2235.9,2235.7,0.3886]
[1725675853938,8.01019,2235.8,2235.4,3.2078]
[1725675854141,0.3896,2235.7,2235.4,3.5715]
[1725675854941,0.83701,2235.7,2235.4,3.5715]
[1725675855138,0.44742,2235.6,2235.4,3.5715]
[1725675855529,0.44743,2235.6,2235.4,3.5715]
[1725675855736,0.44741,2235.6,2235.4,3.5715]
[1725675856139,0.44743,2235.5,2235.4,0.3637]
[1725675856734,4.4736,2235.5,2235.0,3.593]
[1725675856948,3.09,2235.3,2235.0,3.9773]
[1725675857142,3.09,2235.3,2235.0,4.42483]
[1725675857748,3.09,2235.3,2235.0,3.9773]
[1725675858136,3.53748,2235.3,2235.0,3.9773]
[1725675858645,3.53748,2235.3,2235.0,0.7695]
[1725675859040,0.8247,2235.2,2235.0,0.7695]
[1725675859245,0.3772,2235.2,2235.0,0.7695]
[1725675860050,0.3772,2235.2,2235.0,0.3843]
[1725675860740,3.53749,2235.3,2235.0,0.3843]
[1725675860935,0.3772,2235.2,2235.0,0.3843]
[1725675861342,10.79560942,2235.1,2234.7,3.2078]
[1725675861548,10.79560942,2235.1,2234.9,0.3933]
[1725675861549,3.53752,2235.1,2234.9,0.3933]
[1725675861748,3.09,2235.1,2234.9,0.3933]
[1725675862845,0.02341428,2235.0,2234.9,0.3933]
[1725675864142,0.02341428,2235.1,2234.9,0.3933]
[1725675864337,0.02341468,2235.0,2234.9,0.3933]
[1725675864738,0.3772,2235.2,2234.9,0.3933]
[1725675864739,0.44753,2235.1,2234.9,0.3933]
[1725675867143,0.82471,2235.2,2234.9,0.3933]
[1725675867541,0.82471,2235.2,2234.9,0.84085]
[1725675867744,0.82471,2235.2,2234.9,0.3933]
[1725675868542,0.44752,2235.1,2234.9,0.3933]
[1725675870664,0.8247,2235.2,2234.9,0.3933]
[1725675871548,0.44752,2235.1,2234.9,0.3933]
[1725675872239,2.1147,2235.2,2234.9,0.3933]
[1725675873344,0.44751,2235.1,2234.9,0.3933]
[1725675876352,0.44752,2235.1,2234.9,0.3933]
[1725675876657,2.11471,2235.2,2234.9,0.3933]
[1725675876853,2.11471,2235.2,2235.0,0.3922]
[1725675877947,0.82471,2235.2,2235.0,0.3922]
[1725675878356,0.44751,2235.1,2235.0,0.3922]
[1725675878758,0.82471,2235.2,2235.0,0.3922]
[1725675878960,0.3772,2235.2,2235.0,0.3922]
[1725675879657,0.8247,2235.2,2235.0,0.3922]
[1725675881659,0.44751,2235.1,2235.0,0.3922]
[1725675881860,0.82471,2235.2,2235.0,0.3922]
[1725675883864,0.3772,2235.2,2235.0,0.3922]
[1725675884164,0.82471,2235.2,2235.0,0.3922]
[1725675884758,0.3772,2235.2,2235.0,0.3922]
[1725675885269,1.29,2235.3,2235.0,0.3922]
[1725675885455,0.3997,2235.5,2235.3,0.44747]
[1725675885661,1.29,2235.6,2235.4,1.63555]
[1725675885856,1.73742,2235.6,2235.4,1.1881]
[1725675886770,0.44742,2235.6,2235.4,1.1881]
[1725675887069,1.29,2235.5,2235.4,1.1881]
[1725675887864,10.11338796,2235.5,2234.7,3.2078]
[1725675888065,1.29,2235.0,2234.9,0.3973]
[1725675888455,0.44753,2235.1,2234.9,0.3973]
[1725675889161,1.29,2235.2,2235.0,0.44753]
[1725675889359,1.73749,2235.2,2235.0,0.44753]
[1725675889564,0.44749,2235.2,2235.0,0.44753]
[1725675891260,0.44749,2235.2,2234.9,0.3973]
[1725675891261,0.44749,2235.2,2234.9,0.84484]
[1725675891869,0.44751,2235.1,2234.9,0.84484]
[1725675892662,0.44753,2235.0,2234.9,0.3973]
[1725675900374,0.44753,2235.0,2234.9,1.55835269]
[1725675901980,0.44753,2235.0,2234.9,0.3973]
[1725675904284,0.44753,2235.1,2234.9,0.3973]
[1725675904489,0.44753,2235.0,2234.9,0.3973]
[1725675909894,0.44753,2235.0,2234.9,3.79752441]
[1725675912490,1.56637,2235.0,2234.9,1.55835269]
[1725675912695,1.56637,2235.0,2234.9,0.3973]
[1725675912890,1.58979146,2235.0,2234.9,0.3973]
[1725675913093,1.99159146,2235.0,2234.9,0.3973]
[1725675914293,3.28159146,2235.0,2234.9,0.3973]
[1725675914686,1.56644,2234.9,2234.8,1.16105269]
[1725675914891,0.44759,2234.7,2234.6,1.16105269]
[1725675916091,0.44761,2234.6,2234.5,1.54405269]
[1725675916394,0.44761,2234.6,2234.5,3.7836291]
[1725675917601,0.84601,2234.6,2234.5,3.7836291]
[1725675918305,0.22167035,2234.7,2234.5,1.54405269]
[1725675918495,0.3846,2235.1,2234.9,0.44755]
[1725675918698,4.55751,2235.2,2234.9,0.44755]
[1725675918699,4.11,2235.2,2235.0,1.64652]
[1725675918891,4.11,2235.2,2235.0,2.81080431]
[1725675920001,4.5575,2235.2,2235.1,1.16428431]
[1725675920204,4.5575,2235.2,2235.0,2.81080431]
[1725675922101,0.44751,2235.1,2235.0,2.36328431]
[1725675922705,0.44751,2235.1,2235.0,6.83768431]
[1725675923996,0.44751,2235.2,2235.0,7.28521431]
[1725675924299,0.44751,2235.2,2235.0,2.81081431]
[1725675925005,0.3846,2235.4,2235.0,1.199]
[1725675925196,0.44745,2235.4,2235.2,3.65528]
[1725675925396,0.44747,2235.3,2235.2,3.2078]
[1725675928903,0.44747,2235.3,2235.0,2.53642]
[1725675929105,0.44751,2235.2,2235.0,0.7989]
[1725675929604,0.44749,2235.3,2235.0,1.24643]
[1725675930006,0.4475,2235.2,2235.0,1.24643]
[1725675932004,0.4475,2235.2,2235.0,4.15714078]
[1725675932308,0.4475,2235.2,2235.1,1.16428431]
[1725675935613,0.44751,2235.1,2235.0,1.16274175]
[1725675935800,0.81211,2235.1,2235.0,3.40168834]
[1725675936004,0.81211,2235.1,2235.0,1.16274175]
[1725675940218,0.3646,2235.1,2235.0,1.16274175]
[1725675940517,0.3646,2235.1,2235.0,1.54044175]
[1725675941108,0.3646,2235.1,2235.0,3.77940451]
[1725675941305,0.3646,2235.1,2235.0,1.54044175]
[1725675941512,0.3646,2235.1,2235.0,3.77940042]
[1725675941715,0.81211,2235.1,2235.0,4.14330042]
[1725675944116,0.44748,2235.3,2235.1,0.44751]
[1725675944318,0.44748,2235.3,2235.1,1.9959972]
[1725675945105,0.66742073,2235.4,2235.1,1.5484872]
[1725675945317,0.44748,2235.3,2235.1,1.9959872]
[1725675946222,0.44751,2235.1,2235.0,2.11032647]
[1725675946422,0.44751,2235.1,2235.0,4.34920786]
[1725675946812,0.44751,2235.1,2235.0,2.60278139]
[1725675947120,0.44751,2235.1,2235.0,0.3639]
[1725675947320,0.3739,2235.1,2235.0,0.3639]
[1725675949311,0.44748,2235.3,2235.0,0.81143]
[1725675949516,0.82974,2235.5,2235.0,0.3639]
[1725675949718,1.20994,2235.5,2235.2,0.44748]
[1725675949923,1.43580423,2235.5,2235.2,0.44748]
[1725675950124,1.43580423,2235.5,2235.3,0.3732]
[1725675951015,0.44745,2235.4,2235.3,0.3732]
[1725675951217,1.40093548,2235.8,2235.4,4.4736]
[1725675951525,0.82757,2235.9,2235.7,0.44739]
[1725675951818,1.05697175,2235.9,2235.8,0.3732]
[1725675953319,0.82757,2235.9,2235.8,0.3732]
[1725675954229,5.51093548,2236.4,2235.8,12.136]
[1725675954524,0.9137494,2236.4,2236.1,4.9451]
[1725675954728,1.29,2236.3,2236.2,0.384]
[1725675954915,1.6885,2236.3,2236.2,0.384]
[1725675955124,2.13577,2236.3,2236.2,0.384]
[1725675955324,1.73727,2236.3,2236.2,0.384]
[1725675958821,1.73727,2236.3,2235.9,0.3758]
[1725675958822,0.44732,2236.1,2235.9,0.3758]
[1725675959117,0.3833,2236.0,2235.9,0.3758]
[1725675959323,0.3833,2236.0,2235.8,0.3951]
[1725675959523,0.3833,2236.0,2235.8,0.84247]
[1725675961124,0.44735,2235.9,2235.8,0.3951]
[1725675961430,1.22454,2236.0,2235.8,0.3951]
[1725675963625,0.3833,2236.0,2235.8,0.3951]
[1725675963832,0.44732,2236.1,2235.8,0.84247]
[1725675964022,0.44732,2236.1,2235.9,0.3656]
[1725675964334,0.4473,2236.2,2235.9,4.02075]
[1725675964535,1.6721,2236.3,2235.9,3.5734]
[1725675964732,1.6721,2236.3,2236.0,0.44733]
[1725675964733,2.11939,2236.3,2236.0,0.44733]
[1725675965035,0.82939,2236.3,2236.1,0.3803]
[1725675965425,0.82939,2236.3,2236.2,0.3879]
[1725675967036,0.82937,2236.3,2236.2,0.3879]
[1725675968933,0.3821,2236.3,2236.2,0.3879]
[1725675969134,0.82937,2236.3,2236.2,0.3879]
[1725675971328,0.3821,2236.3,2236.2,0.3879]
[1725675971526,0.67366157,2236.4,2236.2,0.3879]
[1725675971934,0.44727,2236.3,2236.2,0.3879]
[1725675977531,0.47063773,2236.3,2236.2,0.3879]
[1725675978132,0.47063863,2236.3,2236.2,0.3879]
[1725675979338,0.47063552,2236.3,2236.2,0.3879]
[1725675979738,0.02336552,2236.3,2236.2,0.3879]
[1725675981645,5.17146157,2236.4,2236.2,0.3879]
[1725675982127,5.17146157,2236.4,2236.3,0.3903]
[1725675982330,5.19482821,2236.4,2236.3,0.3903]
[1725675983138,1.98702821,2236.4,2236.3,0.3903]
[1725675983345,5.19482821,2236.4,2236.3,0.3903]
[1725675984040,0.02336664,2236.4,2236.3,0.3903]
[1725675984338,0.47060664,2236.5,2236.3,0.7665]
[1725675984540,0.02336248,2236.4,2236.3,0.7665]
[1725675984738,0.67642018,2236.5,2236.3,0.7665]
[1725675986140,1.73725,2236.4,2236.3,0.7665]
[1725675986334,0.44727,2236.3,2236.2,0.3879]
[1725675986736,3.65507,2236.3,2236.2,0.3879]
[1725675987453,0.44727,2236.3,2236.2,0.3879]
[1725675990548,0.67642018,2236.5,2236.2,0.83518]
[1725675990750,0.44724,2236.5,2236.3,0.388]
[1725675991342,0.22419125,2236.4,2236.3,0.388]
[1725675993350,0.44725,2236.4,2236.2,0.83518]
[1725675993943,3.65504,2236.5,2236.3,0.44727]
[1725675994143,3.65504,2236.5,2236.2,0.83518]
[1725675994646,0.44725,2236.4,2236.2,0.83518]
[1725675995447,3.2078,2236.5,2236.3,0.44727]
[1725675995448,3.65505,2236.5,2236.3,0.44727]
[1725675996337,0.44725,2236.5,2236.4,0.3806]
[1725675997948,1.29,2236.6,2236.4,0.82784]
[1725675997949,1.73723,2236.6,2236.4,0.82784]
[1725675998349,1.73723,2236.6,2236.5,0.376]
[1725675998750,0.44723,2236.6,2236.5,0.376]
[1725675998945,0.44721,2236.6,2236.5,0.82322]
[1725675999149,0.44721,2236.6,2236.5,1.18542]
[1725675999348,0.44721,2236.7,2236.5,1.18542]
[1725675999954,1.91249679,2236.8,2236.5,1.18542]
[1725676000151,0.44721,2236.7,2236.5,1.18542]
[1725676000354,1.91249679,2236.8,2236.5,1.90145284]
[1725676000355,0.44721,2236.6,2236.5,1.90145284]
[1725676000848,1.73721,2236.6,2236.5,0.376]
[1725676004053,4.94501,2236.6,2236.5,0.376]
[1725676010263,4.96837119,2236.6,2236.5,0.376]
[1725676012358,3.23116119,2236.6,2236.3,1.16325284]
[1725676012554,0.44727,2236.3,2236.2,0.3918]
[1725676012751,0.47063119,2236.3,2236.2,0.3918]
[1725676012951,0.84013119,2236.3,2236.2,0.3918]
[1725676013866,0.44731,2236.2,2236.0,1.16325284]
[1725676014065,0.44731,2236.2,2236.0,1.54935284]
[1725676014563,0.3997,2236.1,2236.0,0.3861]
[1725676014862,0.84701,2236.1,2236.0,0.3861]
[1725676015263,0.87038457,2236.1,2236.0,0.3861]
[1725676015461,0.44736,2235.9,2235.7,1.16325284]
[1725676015664,0.3957,2235.8,2235.6,1.16325284]
[1725676016565,0.3957,2235.8,2235.5,1.94155284]
[1725676016763,0.84309,2235.8,2235.6,0.3665]
[1725676018055,0.44739,2235.7,2235.6,0.3665]
[1725676018664,3.65517,2235.9,2235.6,0.3665]
[1725676020455,0.44737,2235.9,2235.6,0.3665]
[1725676023867,0.44737,2235.8,2235.6,0.3665]
[1725676024663,0.44737,2235.8,2235.6,0.81391]
[1725676024860,0.44737,2235.8,2235.6,0.3665]
[1725676026459,0.44737,2235.8,2235.6,0.81391]
[1725676027466,0.44736,2235.9,2235.7,0.44738]
[1725676027862,0.44737,2235.8,2235.7,4.4728]
[1725676028063,0.44737,2235.8,2235.6,1.97715284]
[1725676028376,0.44737,2235.8,2235.7,4.92019]
[1725676028567,0.44737,2235.8,2235.7,4.4728]
[1725676031263,0.44739,2235.7,2235.6,0.3665]
[1725676032065,0.389,2235.8,2235.6,0.3665]
[1725676033670,0.83639,2235.8,2235.6,0.3665]
[1725676033874,0.44739,2235.7,2235.6,0.3665]
[1725676034974,0.83639,2235.8,2235.6,0.3665]
[1725676035673,0.44739,2235.7,2235.6,0.3665]
[1725676046166,1.73739,2235.7,2235.6,0.3665]
[1725676046767,0.44745,2235.4,2235.2,0.365]
[1725676046978,0.44745,2235.4,2235.3,0.3636]
[1725676047376,0.83185,2235.4,2235.3,0.3636]
[1725676051278,1.95049,2235.4,2235.3,0.3636]
[1725676051483,1.50304,2235.4,2235.0,3.5873]
[1725676051786,1.29,2235.3,2235.1,0.3729]
[1725676051973,0.44751,2235.2,2235.1,0.3729]
[1725676054676,0.44751,2235.2,2234.5,4.37105284]
[1725676054677,1.11879,2235.1,2234.5,4.37105284]
[1725676054885,1.73758,2234.8,2234.7,0.4004]
[1725676058284,0.44761,2234.6,2234.5,3.2078]
[1725676058487,0.44766,2234.4,2234.2,0.7645]
[1725676059077,0.44766,2234.4,2234.2,0.3801]
[1725676059277,1.29,2234.3,2234.2,0.3801]
[1725676059588,1.73767,2234.3,2234.2,0.3801]
[1725676061489,1.73767,2234.3,2233.6,3.2078]
[1725676061490,5.766,2234.3,2233.6,3.2078]
[1725676061685,0.44773,2234.0,2233.9,0.3906]
[1725676062085,0.44779,2233.7,2233.6,3.5879]
[1725676062490,1.73779,2233.8,2233.6,3.5879]
[1725676062989,0.44779,2233.7,2233.6,3.5879]
[1725676063388,3.65559,2233.7,2233.3,0.3981]
[1725676063689,3.65559,2233.7,2233.3,0.7986]
[1725676063890,1.29,2233.6,2233.3,0.7986]
[1725676064392,1.29,2233.6,2233.4,0.3782]
[1725676064887,0.44783,2233.5,2233.4,0.3782]
[1725676065095,1.73783,2233.5,2233.4,0.3782]
[1725676067191,6.21543,2233.5,2233.4,0.3782]
[1725676068889,0.3919,2233.9,2233.4,0.3782]
[1725676069091,1.6819,2233.9,2233.6,0.4478]
[1725676069288,1.29,2233.9,2233.5,3.9746]
[1725676069592,7.3178,2234.1,2233.8,3.2078]
[1725676069791,1.29,2234.2,2234.0,0.44773]
[1725676069985,0.44766,2234.4,2234.1,0.84831]
[1725676069986,3.54766,2234.4,2234.1,0.84831]
[1725676070885,3.54766,2234.4,2234.1,0.4006]
[1725676071288,6.3078,2234.6,2234.1,8.0844]
[1725676071483,6.3078,2234.6,2234.3,0.44766]
[1725676071893,6.75542,2234.6,2234.4,0.3913]
[1725676072900,6.3078,2234.6,2234.4,0.3913]
[1725676074189,3.54762,2234.6,2234.4,0.3913]
[1725676076103,0.44763,2234.5,2234.4,0.3913]
[1725676078492,3.1,2234.6,2234.4,0.3913]
[1725676079093,0.44767,2234.4,2234.1,3.6084]
[1725676079294,0.22855658,2234.4,2234.1,3.9869]
[1725676080195,0.44769,2234.2,2234.1,0.3785]
[1725676081297,3.2078,2234.3,2234.1,0.3785]
[1725676081696,3.65548,2234.3,2234.1,0.3785]
[1725676082996,0.44769,2234.2,2234.1,0.3785]
[1725676084403,0.395,2234.5,2234.1,4.8545]
[1725676084603,3.2078,2234.5,2234.3,0.44767]
[1725676084904,3.65544,2234.5,2234.2,0.84508]
[1725676085497,0.44766,2234.4,2234.2,0.84508]
[1725676086001,3.65544,2234.5,2234.2,0.84508]
[1725676086199,0.44766,2234.4,2234.2,0.84508]
[1725676087208,3.65545,2234.5,2234.3,0.44767]
[1725676087506,3.2078,2234.5,2234.3,0.44767]
[1725676088099,0.44764,2234.5,2234.3,0.44767]
[1725676090314,0.44764,2234.5,2234.4,0.44765]
[1725676090503,0.44764,2234.5,2234.2,0.7818]
[1725676090702,0.44764,2234.5,2234.3,0.44766]
[1725676091005,0.44767,2234.4,2234.2,1.22949]
[1725676091209,0.44767,2234.4,2234.2,0.84509]
[1725676093110,0.44767,2234.4,2234.3,0.44767]
[1725676095906,0.44765,2234.5,2234.3,0.44767]
[1725676097409,0.44765,2234.4,2234.3,0.44767]
[1725676097715,0.44765,2234.4,2234.2,0.84508]
[1725676097908,1.73765,2234.4,2234.3,0.44767]
[1725676098703,0.44767,2234.3,2234.2,0.84508]
[1725676098904,1.73767,2234.4,2234.2,0.84508]
[1725676099716,1.73767,2234.4,2234.1,3.5863]
[1725676099717,0.44769,2234.2,2234.1,4.034]
[1725676100019,0.44769,2234.2,2234.1,0.8262]
[1725676100319,0.44769,2234.2,2234.1,5.3022]
[1725676102218,0.44769,2234.2,2234.1,4.8545]
[1725676102415,1.73769,2234.2,2234.1,0.3785]
[1725676104817,5.62067,2234.8,2234.1,15.3523]
[1725676105010,1.6883,2234.6,2234.4,0.44764]
[1725676105209,2.13591,2234.6,2234.5,0.3877]
[1725676117728,2.13591,2234.6,2234.5,1.55095284]
[1725676118121,2.13591,2234.6,2234.5,0.3877]
[1725676118724,2.13591,2234.6,2234.5,1.16325284]
[1725676118934,0.44763,2234.5,2234.4,1.74642647]
[1725676119124,1.73763,2234.5,2234.4,1.16726056]
[1725676119830,0.44765,2234.4,2234.2,1.74642647]
[1725676120134,1.96312232,2234.3,2234.2,0.3826]
[1725676148760,1.73768,2234.3,2234.2,0.3826]
[1725676149058,1.96612265,2234.3,2234.2,0.3826]
[1725676149947,1.567,2234.1,2233.9,1.74642647]
[1725676150151,0.44777,2233.8,2233.7,0.3677]
[1725676150453,0.44777,2233.8,2233.5,1.74642647]
[1725676150454,0.44781,2233.6,2233.5,1.16726056]
[1725676150655,0.44781,2233.6,2233.5,0.3655]
[1725676150656,1.73781,2233.6,2233.5,0.3655]
[1725676151258,2.13161,2233.6,2233.5,0.3655]
[1725676153158,12.1606,2233.6,2233.2,1.16726056]
[1725676153362,1.73788,2233.3,2233.2,0.3766]
[1725676153754,2.11517,2233.3,2233.2,0.3766]